[Event "Late-Titled-Tuesday-Blitz-February-13-2024"]
[Site "Chess.com"]
[Date "2024.02.13"]
[Round "5"]
[White "kuli4ik"]
[Black "chegueps"]
[Result "1/2-1/2"]
[WhiteElo "2861"]
[BlackElo "2681"]
[TimeControl "180+1"]
[EndTime "14:56:51 PST"]
[Termination "Game drawn by stalemate"]

1. Nf3 {[%clk 0:02:02.4]} 1... Nf6 {[%clk 0:02:56.5]} 2. g3 {[%clk 0:02:02.8]}
2... g6 {[%clk 0:02:57.1]} 3. b3 {[%clk 0:02:03.4]} 3... Bg7 {[%clk 0:02:58]} 4.
Bb2 {[%clk 0:02:04]} 4... O-O {[%clk 0:02:58.6]} 5. Bg2 {[%clk 0:02:04.3]} 5...
d5 {[%clk 0:02:55]} 6. c4 {[%clk 0:02:03.8]} 6... c6 {[%clk 0:02:21.3]} 7. O-O
{[%clk 0:02:02.6]} 7... a5 {[%clk 0:02:17.5]} 8. Nc3 {[%clk 0:02:02]} 8... Na6
{[%clk 0:02:16.4]} 9. cxd5 {[%clk 0:01:55.9]} 9... Nxd5 {[%clk 0:02:12.8]} 10.
d4 {[%clk 0:01:53.6]} 10... Nxc3 {[%clk 0:02:10.4]} 11. Bxc3 {[%clk 0:01:54.5]}
11... Bf5 {[%clk 0:02:10.9]} 12. Ne5 {[%clk 0:01:40.9]} 12... Nb4 {[%clk
0:02:02.5]} 13. e4 {[%clk 0:01:37.4]} 13... Be6 {[%clk 0:01:51.1]} 14. Qe2
{[%clk 0:01:27]} 14... Bxe5 {[%clk 0:01:42.6]} 15. dxe5 {[%clk 0:01:27.9]} 15...
Qd3 {[%clk 0:01:42.9]} 16. Qxd3 {[%clk 0:01:27.5]} 16... Nxd3 {[%clk 0:01:43.8]}
17. Rfd1 {[%clk 0:01:27.1]} 17... Nb4 {[%clk 0:01:35]} 18. Rd2 {[%clk
0:01:22.8]} 18... Rfd8 {[%clk 0:01:25.2]} 19. Rad1 {[%clk 0:01:22.5]} 19... Rxd2
{[%clk 0:01:17.1]} 20. Rxd2 {[%clk 0:01:20.3]} 20... c5 {[%clk 0:01:17.6]} 21.
f4 {[%clk 0:01:11.1]} 21... a4 {[%clk 0:01:10.4]} 22. f5 {[%clk 0:01:05.6]}
22... gxf5 {[%clk 0:00:58.2]} 23. exf5 {[%clk 0:01:05.6]} 23... Bxf5 {[%clk
0:00:54.5]} 24. Bxb7 {[%clk 0:01:02.5]} 24... Rb8 {[%clk 0:00:51.3]} 25. Bf3
{[%clk 0:00:43.4]} 25... a3 {[%clk 0:00:39.9]} 26. Kf2 {[%clk 0:00:35.2]} 26...
Bb1 {[%clk 0:00:38.9]} 27. Bxb4 {[%clk 0:00:33.1]} 27... cxb4 {[%clk 0:00:39.8]}
28. Ke3 {[%clk 0:00:22.1]} 28... Rc8 {[%clk 0:00:39.9]} 29. Be4 {[%clk
0:00:21.4]} 29... Rc1 {[%clk 0:00:27.2]} 30. Bxb1 {[%clk 0:00:20.5]} 30... Rxb1
{[%clk 0:00:28.1]} 31. h4 {[%clk 0:00:16.3]} 31... h5 {[%clk 0:00:27.9]} 32. Rd4
{[%clk 0:00:15.8]} 32... Rb2 {[%clk 0:00:23.5]} 33. Rxb4 {[%clk 0:00:15.9]}
33... Rxa2 {[%clk 0:00:24]} 34. Ra4 {[%clk 0:00:16.3]} 34... Ra1 {[%clk
0:00:23.2]} 35. Kf4 {[%clk 0:00:13.9]} 35... f6 {[%clk 0:00:18.8]} 36. exf6
{[%clk 0:00:13.3]} 36... exf6 {[%clk 0:00:19.7]} 37. Kf5 {[%clk 0:00:13.9]}
37... Kg7 {[%clk 0:00:19]} 38. Ra7+ {[%clk 0:00:07.1]} 38... Kh6 {[%clk
0:00:19.5]} 39. Ra6 {[%clk 0:00:06.5]} 39... Kg7 {[%clk 0:00:16.5]} 40. Ra7+
{[%clk 0:00:06.3]} 40... Kh6 {[%clk 0:00:16.9]} 41. Ra6 {[%clk 0:00:07.2]} 41...
a2 {[%clk 0:00:11.7]} 42. Kxf6 {[%clk 0:00:06.4]} 42... Kh7 {[%clk 0:00:04.2]}
43. Kg5 {[%clk 0:00:06.7]} 43... Rg1 {[%clk 0:00:02.6]} 44. Ra7+ {[%clk
0:00:06.8]} 44... Kg8 {[%clk 0:00:02.7]} 45. Rxa2 {[%clk 0:00:07.7]} 45... Rxg3+
{[%clk 0:00:03.3]} 46. Kxh5 {[%clk 0:00:07.6]} 46... Rxb3 {[%clk 0:00:04.2]} 47.
Kg5 {[%clk 0:00:06.8]} 47... Rb5+ {[%clk 0:00:04.5]} 48. Kg4 {[%clk 0:00:07.2]}
48... Rb4+ {[%clk 0:00:05]} 49. Kg3 {[%clk 0:00:07.4]} 49... Rb3+ {[%clk
0:00:05.6]} 50. Kg4 {[%clk 0:00:08]} 50... Rb4+ {[%clk 0:00:06.2]} 51. Kg5
{[%clk 0:00:08.6]} 51... Rb5+ {[%clk 0:00:06.7]} 52. Kf6 {[%clk 0:00:09.2]}
52... Rb6+ {[%clk 0:00:06.9]} 53. Kf5 {[%clk 0:00:09.4]} 53... Rb5+ {[%clk
0:00:07.4]} 54. Ke6 {[%clk 0:00:09.9]} 54... Rb6+ {[%clk 0:00:07.6]} 55. Ke5
{[%clk 0:00:09.9]} 55... Kg7 {[%clk 0:00:07.3]} 56. Rg2+ {[%clk 0:00:08.1]}
56... Kh6 {[%clk 0:00:07.3]} 57. Rg5 {[%clk 0:00:08.3]} 57... Rb5+ {[%clk
0:00:07.4]} 58. Kf4 {[%clk 0:00:08.6]} 58... Rb4+ {[%clk 0:00:07.9]} 59. Kg3
{[%clk 0:00:09.2]} 59... Rb3+ {[%clk 0:00:08.5]} 60. Kg4 {[%clk 0:00:09.8]}
60... Rb4+ {[%clk 0:00:09.1]} 61. Kh3 {[%clk 0:00:10.3]} 61... Rb3+ {[%clk
0:00:09.7]} 62. Rg3 {[%clk 0:00:10.7]} 62... Rxg3+ {[%clk 0:00:10.3]} 63. Kxg3
{[%clk 0:00:11.6]} 63... Kh5 {[%clk 0:00:11]} 64. Kh3 {[%clk 0:00:12.2]} 64...
Kh6 {[%clk 0:00:11.9]} 65. Kg4 {[%clk 0:00:13.1]} 65... Kg6 {[%clk 0:00:12.8]}
66. h5+ {[%clk 0:00:13.4]} 66... Kh6 {[%clk 0:00:13.7]} 67. Kh4 {[%clk
0:00:14.3]} 67... Kh7 {[%clk 0:00:14.4]} 68. Kg5 {[%clk 0:00:15.2]} 68... Kg7
{[%clk 0:00:15.1]} 69. h6+ {[%clk 0:00:16.1]} 69... Kh7 {[%clk 0:00:16]} 70. Kh5
{[%clk 0:00:17]} 70... Kh8 {[%clk 0:00:16.9]} 71. Kg6 {[%clk 0:00:17.4]} 71...
Kg8 {[%clk 0:00:17.8]} 72. h7+ {[%clk 0:00:17.8]} 72... Kh8 {[%clk 0:00:18.7]}
73. Kh6 {[%clk 0:00:18.7]} 1/2-1/2

[Event "Late-Titled-Tuesday-Blitz-February-13-2024"]
[Site "Chess.com"]
[Date "2024.02.13"]
[Round "5"]
[White "Goryachkina"]
[Black "MolecularChemist"]
[Result "1/2-1/2"]
[WhiteElo "2698"]
[BlackElo "2905"]
[TimeControl "180+1"]
[EndTime "14:56:57 PST"]
[Termination "Game drawn by repetition"]

1. e4 {[%clk 0:02:59.7]} 1... e5 {[%clk 0:02:59.6]} 2. Nf3 {[%clk 0:02:59.4]}
2... Nc6 {[%clk 0:03:00.2]} 3. d4 {[%clk 0:02:59.4]} 3... exd4 {[%clk
0:03:00.1]} 4. Nxd4 {[%clk 0:02:59.6]} 4... Bc5 {[%clk 0:03:00.7]} 5. Be3 {[%clk
0:02:58.2]} 5... Bb6 {[%clk 0:02:58.1]} 6. c3 {[%clk 0:02:50.1]} 6... Qf6 {[%clk
0:02:51.7]} 7. Be2 {[%clk 0:02:36.1]} 7... Nge7 {[%clk 0:02:46.1]} 8. O-O {[%clk
0:02:35.5]} 8... O-O {[%clk 0:02:43.1]} 9. Na3 {[%clk 0:02:32.1]} 9... d5 {[%clk
0:02:38.1]} 10. Nxc6 {[%clk 0:02:24.6]} 10... bxc6 {[%clk 0:02:34.9]} 11. exd5
{[%clk 0:02:20.6]} 11... cxd5 {[%clk 0:02:22.5]} 12. Bxb6 {[%clk 0:01:57.5]}
12... axb6 {[%clk 0:02:19.2]} 13. Nb5 {[%clk 0:01:57.4]} 13... c6 {[%clk
0:02:13.5]} 14. Nd4 {[%clk 0:01:56.8]} 14... c5 {[%clk 0:02:08.4]} 15. Nb5
{[%clk 0:01:56.8]} 15... Rd8 {[%clk 0:01:56.7]} 16. Re1 {[%clk 0:01:46.8]} 16...
Be6 {[%clk 0:01:45.3]} 17. Bd3 {[%clk 0:01:41.4]} 17... Rac8 {[%clk 0:01:38.2]}
18. Qh5 {[%clk 0:01:37.9]} 18... h6 {[%clk 0:01:34.5]} 19. Rad1 {[%clk
0:01:32.9]} 19... Nc6 {[%clk 0:01:22.8]} 20. h3 {[%clk 0:01:28.5]} 20... Qg5
{[%clk 0:01:14.3]} 21. Qxg5 {[%clk 0:01:15]} 21... hxg5 {[%clk 0:01:15.2]} 22.
a3 {[%clk 0:01:15.1]} 22... Kf8 {[%clk 0:01:14.3]} 23. Bc2 {[%clk 0:01:01.3]}
23... Rd7 {[%clk 0:01:05.7]} 24. Bb3 {[%clk 0:00:41.2]} 24... Rcd8 {[%clk
0:01:05.1]} 25. Rd2 {[%clk 0:00:37.5]} 25... Na5 {[%clk 0:01:02.4]} 26. Ba2
{[%clk 0:00:37]} 26... Nc4 {[%clk 0:01:00.1]} 27. Bxc4 {[%clk 0:00:30.9]} 27...
dxc4 {[%clk 0:01:01]} 28. Rxd7 {[%clk 0:00:26.3]} 28... Rxd7 {[%clk 0:01:01.9]}
29. Kf1 {[%clk 0:00:25.1]} 29... Bf5 {[%clk 0:00:57.7]} 30. Re5 {[%clk
0:00:18.7]} 30... g6 {[%clk 0:00:55.9]} 31. g4 {[%clk 0:00:16.6]} 31... Bb1
{[%clk 0:00:52.3]} 32. Ke1 {[%clk 0:00:11.8]} 32... Kg7 {[%clk 0:00:50.8]} 33.
Re3 {[%clk 0:00:09]} 33... Bd3 {[%clk 0:00:44.6]} 34. Re8 {[%clk 0:00:08.5]}
34... Bc2 {[%clk 0:00:40.9]} 35. Rb8 {[%clk 0:00:05.6]} 35... Rd1+ {[%clk
0:00:41.4]} 36. Ke2 {[%clk 0:00:05.6]} 36... Rb1 {[%clk 0:00:40.5]} 37. Nd6
{[%clk 0:00:05.3]} 37... Bd3+ {[%clk 0:00:34.8]} 38. Ke3 {[%clk 0:00:04.9]}
38... Rxb2 {[%clk 0:00:33.2]} 39. Ne8+ {[%clk 0:00:04]} 39... Kf8 {[%clk
0:00:33]} 40. Nf6+ {[%clk 0:00:03.7]} 40... Kg7 {[%clk 0:00:28.2]} 41. Ne8+
{[%clk 0:00:04]} 41... Kh6 {[%clk 0:00:28.5]} 42. Nf6 {[%clk 0:00:04]} 42...
Re2+ {[%clk 0:00:24.1]} 43. Kf3 {[%clk 0:00:04]} 43... Re6 {[%clk 0:00:23.9]}
44. Ne8 {[%clk 0:00:03.3]} 44... Be2+ {[%clk 0:00:18.9]} 45. Kg3 {[%clk
0:00:03.7]} 45... f5 {[%clk 0:00:18.2]} 46. gxf5 {[%clk 0:00:03.3]} 46... gxf5
{[%clk 0:00:19.1]} 47. f4 {[%clk 0:00:03.3]} 47... Re3+ {[%clk 0:00:18.6]} 48.
Kf2 {[%clk 0:00:03.7]} 48... gxf4 {[%clk 0:00:18]} 49. Rxb6+ {[%clk 0:00:04.1]}
49... Kg5 {[%clk 0:00:18.5]} 50. Nf6 {[%clk 0:00:04]} 50... Bd3 {[%clk
0:00:06.6]} 51. Nh7+ {[%clk 0:00:04.1]} 51... Kh5 {[%clk 0:00:06.9]} 52. Nf6+
{[%clk 0:00:04.5]} 52... Kg5 {[%clk 0:00:07.5]} 53. Nh7+ {[%clk 0:00:04.8]}
53... Kh5 {[%clk 0:00:08]} 54. Nf6+ {[%clk 0:00:05.2]} 54... Kh4 {[%clk
0:00:07.2]} 55. Nd5 {[%clk 0:00:05.3]} 55... Re2+ {[%clk 0:00:02.5]} 56. Kf3
{[%clk 0:00:05.6]} 56... Kg5 {[%clk 0:00:01.1]} 57. h4+ {[%clk 0:00:04.6]} 57...
Kxh4 {[%clk 0:00:01.3]} 58. Nxf4 {[%clk 0:00:05]} 58... Re4 {[%clk 0:00:01.8]}
59. Rh6+ {[%clk 0:00:04.7]} 59... Kg5 {[%clk 0:00:02.3]} 60. Rg6+ {[%clk
0:00:05.3]} 60... Kh4 {[%clk 0:00:03]} 61. Rh6+ {[%clk 0:00:05.7]} 61... Kg5
{[%clk 0:00:03.7]} 62. Rg6+ {[%clk 0:00:06.3]} 62... Kh4 {[%clk 0:00:04.3]} 63.
Rh6+ {[%clk 0:00:05.4]} 1/2-1/2

[Event "Late-Titled-Tuesday-Blitz-February-13-2024"]
[Site "Chess.com"]
[Date "2024.02.13"]
[Round "5"]
[White "PepeCuenca"]
[Black "Tolya2"]
[Result "1-0"]
[WhiteElo "2685"]
[BlackElo "2502"]
[TimeControl "180+1"]
[EndTime "14:57:02 PST"]
[Termination "PepeCuenca won by checkmate"]

1. c4 {[%clk 0:03:00.9]} 1... e6 {[%clk 0:02:59.2]} 2. Nf3 {[%clk 0:03:00.9]}
2... d5 {[%clk 0:02:59.1]} 3. d4 {[%clk 0:03:01]} 3... dxc4 {[%clk 0:02:57.3]}
4. e3 {[%clk 0:02:55.4]} 4... Nf6 {[%clk 0:02:56]} 5. Bxc4 {[%clk 0:02:55]} 5...
c5 {[%clk 0:02:56.6]} 6. O-O {[%clk 0:02:53.8]} 6... a6 {[%clk 0:02:57.2]} 7.
dxc5 {[%clk 0:02:53.9]} 7... Bxc5 {[%clk 0:02:56]} 8. Qxd8+ {[%clk 0:02:53.2]}
8... Kxd8 {[%clk 0:02:55.2]} 9. Ne5 {[%clk 0:02:54.1]} 9... Ke7 {[%clk
0:02:54.1]} 10. Be2 {[%clk 0:02:54.3]} 10... Nbd7 {[%clk 0:02:52.1]} 11. Nc4
{[%clk 0:02:53.3]} 11... b6 {[%clk 0:02:33.4]} 12. a3 {[%clk 0:02:45.8]} 12...
a5 {[%clk 0:02:32.7]} 13. Nc3 {[%clk 0:02:39.5]} 13... Ba6 {[%clk 0:02:30.3]}
14. Rb1 {[%clk 0:02:28.4]} 14... Bxc4 {[%clk 0:02:23.7]} 15. Bxc4 {[%clk
0:02:28.3]} 15... Ne5 {[%clk 0:02:21]} 16. Bb5 {[%clk 0:02:23.9]} 16... Rhd8
{[%clk 0:02:12]} 17. b4 {[%clk 0:01:55.7]} 17... axb4 {[%clk 0:02:11.5]} 18.
axb4 {[%clk 0:01:56.6]} 18... Bd6 {[%clk 0:02:11.3]} 19. f4 {[%clk 0:01:43.8]}
19... Neg4 {[%clk 0:02:01.6]} 20. h3 {[%clk 0:01:34.1]} 20... Nh6 {[%clk
0:01:59.1]} 21. g4 {[%clk 0:01:28.1]} 21... Nhg8 {[%clk 0:01:49.3]} 22. g5
{[%clk 0:01:23.2]} 22... Nd7 {[%clk 0:01:47]} 23. Rd1 {[%clk 0:01:14]} 23...
Rac8 {[%clk 0:01:42.8]} 24. Ne4 {[%clk 0:01:12.4]} 24... Bb8 {[%clk 0:01:42.2]}
25. Bb2 {[%clk 0:01:01.6]} 25... f5 {[%clk 0:01:41.2]} 26. Nf2 {[%clk
0:00:54.2]} 26... g6 {[%clk 0:01:39.8]} 27. Rd2 {[%clk 0:00:50.3]} 27... Nf8
{[%clk 0:01:35.3]} 28. Rbd1 {[%clk 0:00:47.1]} 28... Rxd2 {[%clk 0:01:33.6]} 29.
Rxd2 {[%clk 0:00:48]} 29... e5 {[%clk 0:01:27.7]} 30. Nd3 {[%clk 0:00:34]} 30...
exf4 {[%clk 0:01:20.3]} 31. Nxf4 {[%clk 0:00:20.1]} 31... Kf7 {[%clk 0:01:18.7]}
32. Ba4 {[%clk 0:00:13.2]} 32... Ne7 {[%clk 0:01:14.9]} 33. Bb3+ {[%clk
0:00:11.6]} 33... Ke8 {[%clk 0:01:14.8]} 34. Kg2 {[%clk 0:00:10.1]} 34... Rd8
{[%clk 0:01:06]} 35. Bf7+ {[%clk 0:00:08.6]} 35... Kxf7 {[%clk 0:01:05.9]} 36.
Rxd8 {[%clk 0:00:09.5]} 36... Bxf4 {[%clk 0:01:03.9]} 37. exf4 {[%clk
0:00:08.5]} 37... Ne6 {[%clk 0:01:04.5]} 38. Rd6 {[%clk 0:00:06.9]} 38... Nxf4+
{[%clk 0:01:03.9]} 39. Kf3 {[%clk 0:00:06.4]} 39... Nxh3 {[%clk 0:01:01]} 40.
Bf6 {[%clk 0:00:04.8]} 40... Ng8 {[%clk 0:00:54.8]} 41. Kg3 {[%clk 0:00:04.3]}
41... Ng1 {[%clk 0:00:52.3]} 42. Kf2 {[%clk 0:00:02.8]} 42... Nh3+ {[%clk
0:00:52.1]} 43. Kg3 {[%clk 0:00:02.3]} 43... Ng1 {[%clk 0:00:52.1]} 44. Rd7+
{[%clk 0:00:02.8]} 44... Ke6 {[%clk 0:00:50.3]} 45. Rb7 {[%clk 0:00:03.1]} 45...
Nxf6 {[%clk 0:00:50.1]} 46. Rxb6+ {[%clk 0:00:03.1]} 46... Kf7 {[%clk
0:00:49.9]} 47. Rxf6+ {[%clk 0:00:03.1]} 47... Kg7 {[%clk 0:00:47.9]} 48. Rb6
{[%clk 0:00:03.3]} 48... Ne2+ {[%clk 0:00:47.7]} 49. Kf3 {[%clk 0:00:03.9]}
49... Nd4+ {[%clk 0:00:47.5]} 50. Kf4 {[%clk 0:00:04.5]} 50... h5 {[%clk
0:00:45.4]} 51. Rb7+ {[%clk 0:00:03.3]} 51... Kf8 {[%clk 0:00:44.2]} 52. Ke5
{[%clk 0:00:03.9]} 52... Nc6+ {[%clk 0:00:41.7]} 53. Kf6 {[%clk 0:00:04.3]}
53... h4 {[%clk 0:00:36.9]} 54. b5 {[%clk 0:00:04.4]} 54... Nd8 {[%clk
0:00:35.7]} 55. Rh7 {[%clk 0:00:04.4]} 55... Ke8 {[%clk 0:00:35.2]} 56. Rxh4
{[%clk 0:00:04]} 56... Kd7 {[%clk 0:00:35.1]} 57. Rd4+ {[%clk 0:00:04.1]} 57...
Kc7 {[%clk 0:00:34.6]} 58. Kxg6 {[%clk 0:00:04]} 58... Ne6 {[%clk 0:00:33.1]}
59. Rc4+ {[%clk 0:00:04.3]} 59... Kd7 {[%clk 0:00:31.8]} 60. Kxf5 {[%clk
0:00:04.3]} 60... Ng7+ {[%clk 0:00:29.5]} 61. Ke5 {[%clk 0:00:04.8]} 61... Ne6
{[%clk 0:00:27.5]} 62. Rd4+ {[%clk 0:00:03.1]} 62... Ke7 {[%clk 0:00:26]} 63.
Rg4 {[%clk 0:00:03.4]} 63... Ng7 {[%clk 0:00:24.9]} 64. b6 {[%clk 0:00:03.6]}
64... Kd7 {[%clk 0:00:24.8]} 65. Rc4 {[%clk 0:00:03.9]} 65... Ne6 {[%clk
0:00:23]} 66. b7 {[%clk 0:00:04]} 66... Nd8 {[%clk 0:00:20.2]} 67. b8=Q {[%clk
0:00:03.9]} 67... Nc6+ {[%clk 0:00:20.3]} 68. Rxc6 {[%clk 0:00:03.8]} 68... Kxc6
{[%clk 0:00:20.6]} 69. Qd6+ {[%clk 0:00:04.2]} 69... Kb7 {[%clk 0:00:20.5]} 70.
g6 {[%clk 0:00:04.9]} 70... Kc8 {[%clk 0:00:20]} 71. Qe7 {[%clk 0:00:04.9]}
71... Kb8 {[%clk 0:00:19.3]} 72. g7 {[%clk 0:00:05.8]} 72... Kc8 {[%clk
0:00:19.6]} 73. g8=Q# {[%clk 0:00:06.7]} 1-0

[Event "Late-Titled-Tuesday-Blitz-February-13-2024"]
[Site "Chess.com"]
[Date "2024.02.13"]
[Round "5"]
[White "bazar-wokzal"]
[Black "a_kandil"]
[Result "1-0"]
[WhiteElo "2646"]
[BlackElo "2482"]
[TimeControl "180+1"]
[EndTime "14:57:06 PST"]
[Termination "bazar-wokzal won by resignation"]

1. e4 {[%clk 0:03:00.9]} 1... c5 {[%clk 0:02:58.8]} 2. c3 {[%clk 0:03:00.1]}
2... d5 {[%clk 0:02:59]} 3. exd5 {[%clk 0:03:00.3]} 3... Qxd5 {[%clk 0:02:59.9]}
4. d4 {[%clk 0:03:00.7]} 4... Nc6 {[%clk 0:03:00.2]} 5. Nf3 {[%clk 0:03:01.1]}
5... Bf5 {[%clk 0:03:00]} 6. Na3 {[%clk 0:02:50.9]} 6... Nf6 {[%clk 0:02:49.4]}
7. Bc4 {[%clk 0:02:43]} 7... Qd8 {[%clk 0:02:39.1]} 8. Qb3 {[%clk 0:02:39.1]}
8... e6 {[%clk 0:02:30]} 9. Qxb7 {[%clk 0:02:37.9]} 9... Rc8 {[%clk 0:02:30.4]}
10. Bb5 {[%clk 0:02:35.3]} 10... Qd7 {[%clk 0:02:24.4]} 11. Qxd7+ {[%clk
0:02:06.6]} 11... Nxd7 {[%clk 0:02:25.3]} 12. O-O {[%clk 0:01:57.8]} 12... cxd4
{[%clk 0:02:22.8]} 13. Bxc6 {[%clk 0:01:57.5]} 13... Rxc6 {[%clk 0:02:19.8]} 14.
Nxd4 {[%clk 0:01:57.8]} 14... Rc5 {[%clk 0:02:20.4]} 15. Be3 {[%clk 0:01:54]}
15... Be7 {[%clk 0:02:16.3]} 16. Ndb5 {[%clk 0:01:45.4]} 16... Rc6 {[%clk
0:01:51.9]} 17. Nxa7 {[%clk 0:01:43.8]} 17... Ra6 {[%clk 0:01:51.2]} 18. N3b5
{[%clk 0:01:36.2]} 18... O-O {[%clk 0:01:50.1]} 19. a4 {[%clk 0:01:33.5]} 19...
Nc5 {[%clk 0:01:45.8]} 20. Rfd1 {[%clk 0:01:12.5]} 20... Bc2 {[%clk 0:01:38.7]}
21. Bxc5 {[%clk 0:01:08.4]} 21... Bxc5 {[%clk 0:01:36.6]} 22. Rd7 {[%clk
0:01:08.5]} 22... Bxa4 {[%clk 0:01:33.2]} 23. b4 {[%clk 0:00:56.7]} 23... Bxb4
{[%clk 0:00:43.3]} 24. cxb4 {[%clk 0:00:53.2]} 24... Bxb5 {[%clk 0:00:43.4]} 25.
Rxa6 {[%clk 0:00:52.3]} 25... Bxd7 {[%clk 0:00:44]} 26. f4 {[%clk 0:00:38.5]}
26... f6 {[%clk 0:00:43.6]} 27. Rd6 {[%clk 0:00:30.2]} 27... Rf7 {[%clk
0:00:34.5]} 28. b5 {[%clk 0:00:27.6]} 28... Kf8 {[%clk 0:00:35]} 29. b6 {[%clk
0:00:27]} 29... Ke7 {[%clk 0:00:21.1]} 30. b7 {[%clk 0:00:19.3]} 30... Rf8
{[%clk 0:00:21.5]} 31. Nc8+ {[%clk 0:00:14.5]} 31... Rxc8 {[%clk 0:00:22]} 32.
bxc8=Q {[%clk 0:00:10.4]} 32... Bxc8 {[%clk 0:00:22.9]} 33. Rb6 {[%clk
0:00:10.2]} 33... Bd7 {[%clk 0:00:22.1]} 34. Kf2 {[%clk 0:00:10.6]} 34... Kd8
{[%clk 0:00:20.2]} 35. Ke3 {[%clk 0:00:10.5]} 35... Kc7 {[%clk 0:00:20.7]} 36.
Rb2 {[%clk 0:00:09.7]} 36... Bc6 {[%clk 0:00:21.1]} 37. g3 {[%clk 0:00:09.3]}
37... Kd6 {[%clk 0:00:21.5]} 38. Kd4 {[%clk 0:00:09.1]} 38... e5+ {[%clk
0:00:21.7]} 39. fxe5+ {[%clk 0:00:09.6]} 39... fxe5+ {[%clk 0:00:22.6]} 40. Ke3
{[%clk 0:00:10.2]} 40... Ke7 {[%clk 0:00:22.9]} 41. Rb6 {[%clk 0:00:10]} 41...
Kd7 {[%clk 0:00:22.9]} 42. Ra6 {[%clk 0:00:10.2]} 42... Kc7 {[%clk 0:00:19.9]}
43. Ra7+ {[%clk 0:00:10.4]} 43... Bb7 {[%clk 0:00:20.3]} 44. h4 {[%clk 0:00:10]}
44... g6 {[%clk 0:00:19.5]} 45. g4 {[%clk 0:00:08.6]} 45... Kb6 {[%clk
0:00:18.1]} 46. Ra1 {[%clk 0:00:07.2]} 46... Kc5 {[%clk 0:00:18]} 47. Rb1 {[%clk
0:00:04.8]} 47... Bd5 {[%clk 0:00:16.3]} 48. Rb8 {[%clk 0:00:03.8]} 48... h5
{[%clk 0:00:05.3]} 49. g5 {[%clk 0:00:03.2]} 49... Be6 {[%clk 0:00:04.5]} 50.
Rf8 {[%clk 0:00:02.7]} 50... Bf5 {[%clk 0:00:04.6]} 51. Rxf5 {[%clk 0:00:02]}
51... gxf5 {[%clk 0:00:03.7]} 52. g6 {[%clk 0:00:02.7]} 52... Kd5 {[%clk
0:00:03.8]} 53. g7 {[%clk 0:00:03.1]} 53... f4+ {[%clk 0:00:03.5]} 54. Kf3
{[%clk 0:00:03.7]} 54... Kd4 {[%clk 0:00:03.8]} 55. g8=Q {[%clk 0:00:04]} 55...
e4+ {[%clk 0:00:04.7]} 56. Kxf4 {[%clk 0:00:03.9]} 56... e3 {[%clk 0:00:04.8]}
57. Qd8+ {[%clk 0:00:04.8]} 57... Kc3 {[%clk 0:00:05.2]} 58. Kxe3 {[%clk
0:00:05.6]} 58... Kc4 {[%clk 0:00:06.1]} 59. Qc7+ {[%clk 0:00:06.1]} 59... Kb5
{[%clk 0:00:06.7]} 60. Kf4 {[%clk 0:00:06.6]} 60... Ka6 {[%clk 0:00:06.9]} 61.
Kg5 {[%clk 0:00:07.5]} 1-0